bitfinex/quotes_ETHUSD_20251217
["timestamp","ask_amount","ask_price","bid_price","bid_amount"]
[1765989773813,0.001,2847.2,2846.6,0.587]
[1765989774428,0.001,2847.2,2846.0,7.9997]
[1765989774629,0.0002,2847.8,2846.0,7.9997]
[1765989774630,0.0002,2847.8,2846.5,0.405504]
[1765989774832,0.0002,2847.8,2847.1,5.6577]
[1765989775032,0.0002,2847.8,2847.2,8.5867]
[1765989775447,0.0002,2847.8,2847.3,7.9997]
[1765989775761,0.0002,2847.8,2847.4,0.587]
[1765989776055,0.0002,2847.8,2847.3,7.9997]
[1765989776256,0.0002,2847.8,2847.4,0.587]
[1765989776555,0.0002,2847.8,2847.6,11.51137977]
[1765989776765,0.001,2848.7,2847.6,11.51137977]
[1765989776766,0.0002,2848.4,2847.7,2.342]
[1765989777446,0.0002,2848.7,2848.4,5.6577]
[1765989777763,0.0002,2848.7,2847.7,0.46438023]
[1765989777936,0.0002,2848.7,2848.1,7.9997]
[1765989778138,0.001,2849.5,2848.3,0.405504]
[1765989778455,0.001,2849.5,2848.5,7.02123924]
[1765989778656,0.001,2849.5,2848.6,0.587]
[1765989778827,0.001,2849.5,2848.7,0.587]
[1765989779422,0.001,2849.5,2848.4,7.9997]
[1765989779651,0.001,2849.5,2848.5,0.587]
[1765989780228,0.001,2849.5,2848.5,8.5867]
[1765989780417,0.001,2849.5,2848.6,7.02099276]
[1765989780621,0.001,2849.5,2848.7,7.9997]
[1765989780829,0.001,2849.9,2849.1,2.342]
[1765989781153,1.71013715,2851.4,2849.1,2.342]
[1765989781154,0.01,2851.6,2849.7,2.342]
[1765989781333,2.654137,2852.2,2850.2,5.6577]
[1765989781552,0.01,2852.4,2850.5,2.342]
[1765989781754,0.001,2851.0,2850.6,0.587]
[1765989781964,0.001,2851.0,2848.7,1.266]
[1765989781965,0.46438023,2850.6,2848.7,7.9997]
[1765989782145,3.93005195,2850.5,2848.8,9.05108023]
[1765989782341,0.46438023,2850.8,2849.1,5.6577]
[1765989782661,0.001,2851.0,2849.2,15.01921424]
[1765989782863,1.72131819,2851.0,2849.3,0.587]
[1765989783061,1.72131819,2851.0,2849.2,7.9997]
[1765989783062,0.46438023,2850.7,2849.4,0.587]
[1765989783450,1.72131819,2851.0,2849.4,0.587]
[1765989783651,0.405504,2850.5,2848.6,7.9997]
[1765989783883,2.16477448,2850.0,2848.7,0.586]
[1765989784041,9.64257242,2850.6,2848.2,11.51066422]
[1765989784042,0.46438023,2850.5,2848.8,0.62110249]
[1765989784242,0.04385349,2850.4,2848.8,4.09624466]
[1765989784446,0.46438023,2850.0,2848.9,0.586]
[1765989784674,1.72415357,2850.2,2849.0,0.586]
[1765989784852,0.46438023,2850.3,2849.1,0.586]
[1765989784853,0.46438023,2849.9,2849.1,0.586]
[1765989785173,0.405504,2850.0,2849.2,0.586]
[1765989785377,0.46438023,2850.3,2849.3,0.03509633]
[1765989785565,0.17841272,2850.4,2849.2,0.586]
[1765989786080,0.21856984,2850.9,2849.2,0.586]
[1765989786247,0.26241564,2850.9,2849.3,7.9997]
[1765989786577,10.0,2850.0,2849.4,0.586]
[1765989786789,10.0,2850.0,2848.8,3.51023016]
[1765989786790,10.0,2850.0,2849.5,0.586]
[1765989786947,1.46438023,2849.9,2849.5,0.586]
[1765989787146,1.46438023,2849.9,2849.6,0.586]
[1765989787386,9.478485,2849.8,2848.4,0.46438023]
[1765989787545,1.46438023,2849.9,2848.5,4.09657596]
[1765989787747,1.46438023,2849.9,2848.5,4.09656542]
[1765989787973,1.14643802,2849.8,2848.4,7.9997]
[1765989788288,10.0,2850.0,2848.8,7.9997]
[1765989788583,0.001,2850.3,2848.8,5.6786]
[1765989788887,0.46438023,2850.1,2848.9,2.2215]
[1765989789084,0.46438023,2850.1,2848.9,8.4861]
[1765989789377,6.05758023,2849.7,2849.0,0.586]
[1765989789556,0.83185802,2849.6,2849.0,0.586]
[1765989789760,6.05758023,2849.4,2849.1,0.586]
[1765989790259,0.83185802,2849.6,2848.9,0.586]
[1765989790445,5.6136,2849.7,2848.3,2.2215]
[1765989790778,0.46438023,2849.4,2848.4,0.586]
[1765989791148,1.7892,2849.1,2847.2,5.9324]
[1765989791346,1.7892,2849.1,2846.8,3.53727801]
[1765989791347,5.6136,2849.0,2847.9,3.51128796]
[1765989791564,0.405504,2849.5,2848.0,0.586]
[1765989791869,0.46438023,2849.6,2848.1,0.586]
[1765989791870,0.46438023,2849.2,2848.1,0.586]
[1765989792068,5.6136,2849.3,2847.9,2.6471288]
[1765989792069,0.0438735,2849.1,2847.9,0.3511288]
[1765989792262,0.405504,2849.7,2848.0,4.09715322]
[1765989792263,7.86638023,2849.2,2848.0,4.09715322]
[1765989792462,0.405504,2849.5,2848.1,3.51109341]
[1765989792793,0.405504,2849.5,2848.0,0.586]
[1765989792794,1.7541,2849.1,2848.0,0.586]
[1765989792968,1.79797504,2849.0,2848.0,0.5]
[1765989793482,1.79797504,2849.0,2847.3,5.80800296]
[1765989793483,0.46438023,2848.6,2847.3,2.296]
[1765989793687,2.28192932,2848.5,2846.9,2.296]
[1765989793981,1.6681,2848.5,2847.0,4.09837696]
[1765989794189,5.6136,2847.8,2845.8,7.02780136]
[1765989794371,0.46438023,2847.7,2845.9,0.61063661]
[1765989794687,0.586,2848.0,2846.3,0.46438023]
[1765989794858,0.85784802,2848.0,2846.5,2.296]
[1765989795053,5.6136,2847.7,2846.1,7.02715996]
[1765989795254,7.2817,2848.0,2846.2,0.586]
[1765989795454,7.2817,2848.0,2846.3,8.2284]
[1765989795455,0.50827222,2847.9,2846.3,8.2284]
[1765989795754,5.6136,2847.8,2846.8,0.002]
[1765989796061,2.65876699,2847.8,2846.3,2.296]
[1765989796250,7.2797,2847.4,2846.1,0.586]
[1765989796452,0.46438023,2847.3,2846.1,0.586]
[1765989796864,2.13048023,2846.9,2845.8,0.586]
[1765989797175,0.02463661,2847.3,2846.0,2.296]
[1765989797176,0.46438023,2847.3,2846.0,2.296]
[1765989797373,0.46438023,2847.3,2846.0,2.882]
[1765989797374,0.50828301,2847.2,2846.0,2.882]
[1765989797573,0.50828301,2847.2,2846.0,0.586]
[1765989797574,6.07798023,2847.2,2846.0,0.586]
[1765989797778,1.6661,2847.1,2846.0,0.586]
[1765989797974,7.2797,2847.1,2846.0,0.586]
[1765989798176,0.46438023,2847.0,2846.0,0.586]
[1765989798398,0.46438023,2847.0,2845.7,0.002]
[1765989798399,0.586,2846.9,2845.7,0.002]
[1765989798572,6.07798023,2846.7,2845.7,0.588]
[1765989798767,0.65454401,2846.9,2845.7,0.002]
[1765989798768,0.46438023,2846.4,2845.7,0.002]
[1765989798969,1.6661,2846.6,2844.8,0.002]
[1765989798970,5.6136,2846.0,2844.8,0.002]
[1765989799172,0.46438023,2845.6,2844.8,0.002]
[1765989799664,0.02463661,2846.9,2844.8,11.7455856]
[1765989799665,1.05038023,2846.2,2844.8,11.7455856]
[1765989799870,0.46438023,2846.1,2844.9,1.76055856]
[1765989800089,0.586,2846.2,2844.9,1.76055856]
[1765989800394,0.46438023,2845.9,2844.9,0.586]
[1765989800694,0.46438023,2845.9,2844.9,4.10105707]
[1765989800900,0.586,2846.2,2844.9,0.586]
[1765989801071,0.586,2846.2,2844.9,4.10105516]
[1765989801266,0.586,2846.3,2845.0,8.2284]
[1765989801474,0.46438023,2846.1,2845.1,0.586]
[1765989802195,0.46438023,2845.9,2844.8,0.588]
[1765989802396,0.586,2846.3,2844.9,7.03011149]
[1765989802575,1.68873661,2846.6,2845.3,8.2284]
[1765989802777,1.68873661,2846.6,2845.4,0.586]
[1765989802778,6.46482757,2846.5,2845.4,0.586]
[1765989802994,5.6136,2846.3,2845.4,0.586]
[1765989803376,1.6641,2846.4,2845.4,0.586]
[1765989803782,3.51243571,2847.1,2845.4,0.586]
[1765989803783,5.63823661,2847.4,2845.6,5.9324]
[1765989803972,5.63823661,2847.4,2845.4,0.586]
[1765989803973,0.02463661,2848.1,2846.4,2.76038023]
[1765989804186,13.30836806,2848.6,2846.8,5.9324]
[1765989804187,5.6136,2848.2,2846.8,5.9324]
[1765989804409,7.2777,2848.2,2846.3,0.46438023]
[1765989804606,0.61063661,2848.6,2846.6,0.46438023]
[1765989804607,5.6136,2847.8,2846.6,0.46438023]
[1765989804804,10.5403103,2847.7,2846.4,8.2284]
[1765989805015,1.6641,2847.7,2846.5,0.586]
[1765989805329,5.6136,2847.6,2846.5,0.586]
[1765989805530,1.6641,2847.7,2846.5,0.586]
[1765989805711,3.53494237,2848.8,2846.9,8.2284]
[1765989805712,0.586,2848.1,2846.9,8.2284]
[1765989805904,0.586,2848.1,2847.0,1.40884]
[1765989806203,6.1996,2848.1,2847.0,1.40884]
[1765989806409,0.46438023,2848.0,2847.0,0.586]
[1765989806604,1.6641,2848.4,2847.1,7.02469178]
[1765989806808,9.166201,2848.6,2847.2,8.2284]
[1765989807004,0.02463661,2848.8,2847.2,8.2284]
[1765989807335,2.672404,2848.6,2847.4,8.2284]
[1765989807558,1.6641,2849.1,2847.5,0.586]
[1765989807714,0.586,2849.1,2847.9,8.2284]
[1765989807917,5.63823661,2849.2,2847.3,1.17407459]
[1765989807918,0.02463661,2849.4,2848.0,0.586]
[1765989808120,0.02463661,2849.6,2848.2,2.296]
[1765989808321,1.6641,2849.5,2848.2,0.35383044]
[1765989808522,0.586,2849.7,2848.2,0.35383044]
[1765989808523,0.586,2849.7,2848.3,8.8144]
[1765989808721,7.2777,2850.0,2848.6,2.296]
[1765989808923,5.6136,2850.0,2848.7,8.2284]
[1765989809210,5.6136,2850.0,2848.4,10.53222861]
[1765989809211,0.001,2850.3,2849.2,2.296]
[1765989809411,0.001,2850.3,2848.8,0.586]
[1765989809412,0.001,2850.3,2849.6,5.9324]
[1765989809750,0.001,2850.6,2850.0,8.2284]
[1765989809915,0.001,2851.0,2850.1,8.8144]
[1765989810115,0.001,2851.5,2850.6,5.9324]
[1765989810410,0.71151759,2852.6,2851.2,8.2284]
[1765989810641,0.71151759,2852.6,2851.3,12.32150367]
[1765989810840,0.71151759,2852.6,2851.3,11.73550367]
[1765989810841,0.001,2852.6,2851.3,11.73550367]
[1765989811042,0.001,2852.6,2851.5,0.405504]
[1765989811244,0.001,2852.6,2851.6,8.2284]
[1765989811448,0.001,2852.6,2851.0,0.405504]
[1765989811626,7.2777,2852.5,2851.3,3.50714501]
[1765989811819,0.72887,2852.6,2851.3,3.50714501]
[1765989811820,0.72887,2852.6,2851.4,8.2284]
[1765989812043,0.001,2852.6,2851.4,8.2284]
[1765989812243,1.6651,2852.6,2851.5,0.586]
[1765989812436,1.6641,2852.4,2851.5,0.586]
[1765989812749,1.6641,2852.4,2851.0,3.50745999]
[1765989813065,1.6641,2852.2,2850.7,2.296]
[1765989813234,7.2777,2851.8,2850.1,5.9324]
[1765989813560,0.46438023,2851.5,2850.2,2.881]
[1765989813760,0.46438023,2851.5,2850.4,3.50820152]
[1765989813971,5.6136,2851.6,2850.2,6.38952512]
[1765989813972,0.405504,2851.6,2850.2,2.296]
[1765989814115,0.46438023,2851.1,2849.6,8.2284]
[1765989814311,0.46438023,2851.1,2849.7,8.8134]
[1765989814312,0.60779802,2851.0,2849.7,8.8134]
[1765989815117,0.60779802,2851.0,2849.8,0.585]
[1765989815312,0.46438023,2850.9,2849.8,0.585]
[1765989815515,0.60779802,2851.0,2849.8,0.585]
[1765989815871,0.02463661,2851.9,2849.8,0.585]
[1765989815872,7.2777,2851.8,2850.0,8.2284]
[1765989816147,7.2777,2851.8,2849.9,0.405504]
[1765989816148,5.6136,2851.8,2850.4,8.2284]
[1765989816443,0.46438023,2851.7,2850.5,0.585]
[1765989816745,1.6641,2851.3,2849.8,2.296]
[1765989816916,1.6641,2851.1,2849.9,0.585]
[1765989817245,0.22491,2851.0,2849.9,0.585]
[1765989817627,1.6641,2851.8,2849.9,0.585]
[1765989817825,2.2491,2851.7,2850.2,5.9324]
[1765989818024,2.2491,2851.7,2850.2,8.2284]
[1765989818225,0.001,2850.9,2850.2,8.2284]
[1765989818773,0.001,2850.9,2849.7,2.296]
[1765989818976,0.60889802,2850.9,2850.1,0.585]
[1765989819258,0.60889802,2850.9,2849.2,2.296]
[1765989819259,5.6136,2850.7,2849.2,2.296]
[1765989819440,1.6641,2850.0,2848.5,3.51054343]
[1765989819645,0.04386118,2849.9,2848.5,2.296]
[1765989819828,0.04386118,2849.9,2848.4,5.9324]
[1765989819829,5.6136,2849.3,2848.0,0.002]
[1765989820019,7.88549802,2849.3,2848.1,0.585]
[1765989820225,0.46438023,2849.2,2848.1,0.585]
[1765989820648,0.46438023,2849.2,2848.0,3.51318293]
[1765989820649,0.46438023,2848.9,2848.0,0.002]
[1765989820832,6.41858023,2848.9,2848.0,0.002]
[1765989821037,0.405504,2849.2,2848.0,0.002]
[1765989821235,7.6183,2849.2,2848.0,0.002]
[1765989821469,1.07217825,2849.3,2848.0,0.002]
[1765989821470,7.6183,2849.3,2848.0,0.002]
[1765989821756,0.46438023,2848.9,2848.0,0.002]
[1765989822117,0.04387658,2848.9,2848.0,0.002]
[1765989822317,0.46438023,2848.8,2848.0,0.002]
[1765989822516,1.76481027,2849.6,2848.2,5.5375]
[1765989822517,5.9542,2849.6,2848.2,5.5375]
[1765989822754,0.405504,2850.0,2848.6,11.24659638]
[1765989822928,2.548114,2849.9,2848.7,0.585]
[1765989823128,0.46438023,2849.2,2848.0,0.002]
[1765989823462,0.585,2849.6,2848.5,7.02120191]
[1765989823757,0.585,2849.6,2848.6,0.585]
[1765989824166,0.585,2849.6,2848.6,1.21442094]
[1765989824958,0.405504,2849.9,2848.7,0.585]
[1765989825171,2.069604,2849.9,2848.7,0.585]
[1765989825338,0.46438023,2849.7,2848.7,0.585]
[1765989825858,1.6641,2849.9,2848.7,0.585]
[1765989826148,0.001,2850.0,2848.4,2.1986]
[1765989826149,1.70796272,2849.8,2848.4,2.1986]
[1765989826349,1.6641,2849.6,2848.6,3.51043463]
[1765989826517,6.41858023,2849.8,2848.5,3.51060556]
[1765989826721,0.46438023,2849.5,2848.0,0.002]
[1765989827052,0.46438023,2848.7,2848.0,0.002]
[1765989827254,2.12648023,2848.6,2847.1,5.5375]
[1765989827551,5.99808274,2848.5,2847.1,7.7361]
[1765989827721,5.9542,2848.4,2847.2,0.585]
[1765989827921,5.9542,2848.4,2846.7,3.51276671]
[1765989827922,5.9542,2848.1,2846.7,3.51276671]
[1765989828230,0.46438023,2848.4,2846.9,8.3211]
[1765989828548,5.9542,2848.5,2847.0,3.51244724]
[1765989828549,0.585,2848.2,2847.0,3.51244724]
[1765989828850,0.46438023,2848.1,2847.0,3.51244724]
[1765989829046,8.08068023,2848.7,2847.1,1.18335472]
[1765989829247,0.46438023,2848.5,2847.1,8.91945472]
[1765989829753,5.9542,2848.4,2847.1,8.91945472]
[1765989829924,1.70598428,2848.4,2847.1,8.91945472]
[1765989830123,0.46438023,2848.5,2847.3,2.1986]
[1765989830328,0.46438023,2848.5,2847.4,0.585]
[1765989830675,0.04388274,2848.5,2847.4,0.585]
[1765989830883,0.46438023,2848.3,2847.4,0.585]
[1765989831029,1.6621,2848.5,2847.4,4.09693269]
[1765989831228,0.04388274,2848.5,2847.5,0.40969327]
[1765989831458,7.6163,2848.8,2847.5,2.60829327]
[1765989831755,1.6621,2848.8,2847.5,2.60829327]
[1765989831949,0.46438023,2848.7,2847.5,2.60829327]
[1765989832861,0.46438023,2848.5,2847.0,7.7361]
[1765989833172,0.46438023,2848.3,2847.1,4.09729602]
[1765989833382,0.585,2848.5,2847.1,4.09729602]
[1765989833675,0.46438023,2848.3,2847.3,3.51207991]
[1765989833873,0.46438023,2848.3,2847.1,4.09729602]
[1765989833874,0.46438023,2848.3,2847.4,0.002]
[1765989834037,0.46438023,2848.2,2847.4,0.585]
[1765989834234,0.46438023,2848.2,2846.8,0.002]
[1765989834483,5.4574,2848.0,2846.8,0.002]
[1765989834639,0.46438023,2847.9,2846.8,0.587]
[1765989835459,7.0305,2847.9,2846.8,0.002]
[1765989835778,7.0305,2847.9,2846.8,7.00873285]
[1765989835938,7.0305,2847.9,2846.9,0.70087329]
[1765989836387,0.62889353,2847.8,2846.4,3.51310068]
[1765989836658,5.92178023,2847.6,2846.4,3.51316599]
[1765989837053,5.92178023,2847.6,2846.2,4.10042053]
[1765989837054,5.4574,2847.5,2846.3,7.02666618]
[1765989837439,5.4574,2847.5,2846.3,0.46438023]
[1765989837768,5.4574,2847.4,2846.2,11.25150635]
[1765989837952,6.08630123,2847.3,2846.2,0.587]
[1765989838158,0.46438023,2847.2,2846.2,0.002]
[1765989838352,0.46438023,2847.2,2846.2,3.51544509]
[1765989838537,0.585,2847.3,2846.2,12.56640162]
[1765989838740,0.585,2847.3,2846.3,2.1986]
[1765989838968,5.4574,2847.1,2846.2,0.002]
[1765989839773,0.46438023,2846.8,2845.8,3.51394316]
[1765989840251,1.5731,2847.4,2846.0,2.1986]
[1765989840452,5.4574,2848.6,2846.7,5.5375]
[1765989840653,7.0285,2848.3,2846.9,7.7361]
[1765989840971,7.0285,2847.5,2846.3,3.51333309]
[1765989841157,7.0285,2847.5,2845.9,3.51381456]
[1765989841158,1.5711,2847.1,2845.9,3.51381456]
[1765989841484,5.4574,2847.0,2845.7,0.002]
[1765989841633,6.0424,2846.9,2845.7,3.51601897]
[1765989841833,7.0285,2846.8,2845.8,3.51387057]
[1765989842200,0.585,2846.9,2846.2,3.51342664]
[1765989842480,2.536104,2848.8,2846.7,5.5375]
[1765989842633,5.4574,2847.9,2846.8,0.585]
[1765989842967,9.49343198,2849.1,2847.0,7.02493852]
[1765989843171,9.49343198,2849.1,2846.5,5.71166417]
[1765989843172,1.5711,2848.5,2846.5,5.71166417]
[1765989843465,7.0285,2848.0,2846.8,0.585]
[1765989843642,0.585,2847.9,2846.9,7.7361]
[1765989843844,0.585,2847.9,2846.8,0.585]
[1765989843845,5.4574,2848.4,2847.0,3.51246926]
[1765989844042,0.001,2848.5,2847.0,7.02493852]
[1765989844266,0.46438023,2848.4,2847.2,7.7361]
[1765989844454,5.4584,2848.5,2847.3,0.585]
[1765989844656,0.46438023,2848.2,2847.2,0.585]
[1765989844856,0.46438023,2848.2,2847.1,0.57026169]
[1765989844857,6.0424,2848.2,2847.1,0.57026169]
[1765989845167,0.001,2848.5,2847.3,2.1986]
[1765989845334,0.001,2848.5,2847.4,2.1986]
[1765989845541,0.001,2848.5,2847.5,0.585]
[1765989845946,5.4584,2848.5,2847.5,0.585]
[1765989846149,5.4584,2848.5,2847.0,2.66298023]
[1765989846150,1.5711,2848.4,2847.0,2.66298023]
[1765989846350,1.5711,2848.4,2846.8,3.51271329]
[1765989846351,1.5711,2847.8,2846.8,3.51271329]
[1765989846559,7.0285,2847.8,2846.5,7.7361]
[1765989846868,2.16499382,2848.1,2846.8,7.02533358]
[1765989846869,0.46438023,2848.1,2846.8,7.02533358]
[1765989847068,0.02563661,2848.5,2847.2,7.7361]
[1765989847069,0.46438023,2848.4,2847.2,7.7361]
[1765989847373,0.584,2848.4,2847.4,7.7361]
[1765989847542,0.001,2848.5,2847.6,5.5375]
[1765989847740,0.001,2848.5,2847.7,0.584]
[1765989848075,0.02463661,2850.2,2848.0,2.1986]
[1765989848272,0.584,2849.6,2848.1,0.584]
[1765989848453,1.61496734,2849.5,2848.2,7.7361]
[1765989848653,5.4584,2849.3,2848.1,0.584]
[1765989848856,7.0295,2849.2,2848.1,0.584]
[1765989849085,0.46438023,2849.1,2848.1,4.09510599]
[1765989849363,0.04387504,2849.0,2848.0,0.584]
[1765989849538,0.04387504,2849.0,2847.6,3.91722567]
[1765989849539,5.4584,2848.7,2847.4,7.9771]
[1765989849739,5.69942,2848.9,2847.4,3.51185873]
[1765989849962,0.46438023,2848.5,2847.4,0.584]
[1765989850162,2.1551,2848.7,2847.5,3.51182639]
[1765989850367,0.46438023,2848.6,2847.6,3.51168719]
[1765989850552,0.46438023,2848.6,2847.4,2.3155]
[1765989850754,12.398748,2848.1,2846.8,3.5126708]
[1765989850952,12.398748,2848.1,2846.5,0.584]
[1765989850953,0.46438023,2847.7,2846.5,0.584]
[1765989851153,5.4584,2847.7,2846.5,1.41433]
[1765989851360,0.584,2848.0,2846.2,0.584]
[1765989851361,0.46438023,2847.3,2846.2,0.584]
[1765989851773,1.5711,2847.5,2846.5,11.23238624]
[1765989851774,0.584,2847.5,2846.5,11.23238624]
[1765989851962,0.584,2847.5,2846.1,3.51350273]
[1765989851963,1.5711,2847.4,2846.1,3.51350273]
[1765989852276,0.46438023,2846.7,2845.7,0.002]
[1765989852573,0.405504,2847.2,2845.6,0.002]
[1765989852574,0.46438023,2846.3,2845.6,0.002]
[1765989852772,0.50829843,2846.2,2844.8,0.002]
[1765989852972,0.46438023,2846.1,2845.0,0.584]
[1765989853173,0.46438023,2846.1,2844.9,4.28933978]
[1765989853374,7.0255,2845.9,2844.9,0.002]
[1765989853574,0.46438023,2845.7,2844.9,0.002]
[1765989854262,1.27616007,2846.2,2845.0,3.51484889]
[1765989854445,5.4544,2846.3,2845.1,2.8154]
[1765989854781,3.53530803,2848.5,2845.6,6.35978423]
[1765989854782,7.0255,2847.9,2845.6,6.35978423]
[1765989854979,7.0255,2847.9,2846.3,2.69378023]
[1765989854980,7.6095,2847.9,2846.3,2.69378023]
[1765989855148,0.04389353,2847.8,2846.4,7.61041932]
[1765989855348,0.584,2847.9,2846.6,2.2294]
[1765989855548,5.4544,2848.3,2846.7,5.4899]
[1765989855775,5.4544,2848.3,2846.8,0.54899]
[1765989855776,0.73790308,2848.2,2846.8,0.54899]
[1765989855977,6.430604,2848.1,2846.3,3.51326558]
[1765989856156,0.46438023,2847.8,2846.4,0.584]
[1765989856362,0.584,2847.7,2846.4,0.584]
[1765989856608,0.584,2847.7,2846.4,2.8134]
[1765989856780,0.46438023,2847.5,2846.2,5.4899]
[1765989856986,0.46438023,2847.5,2845.9,2.2294]
[1765989856987,5.91878023,2847.4,2846.0,0.46438023]
[1765989857282,1.5711,2847.2,2845.7,6.12587842]
[1765989857470,0.46438023,2847.0,2845.8,4.09786477]
[1765989857673,0.46438023,2847.0,2845.9,3.51381899]
[1765989857860,0.46438023,2847.0,2845.9,3.51380039]
[1765989858059,0.46438023,2847.0,2845.9,0.89192661]
[1765989858277,0.46438023,2847.0,2845.9,4.40565635]
[1765989858587,0.584,2847.1,2846.0,0.405504]
[1765989858787,0.02463661,2847.9,2846.0,0.405504]
[1765989858788,1.5711,2848.1,2846.5,0.405504]
[1765989858959,1.5711,2848.1,2846.3,0.46438023]
[1765989858960,0.584,2848.3,2847.0,7.7193]
[1765989859281,0.584,2848.3,2846.8,0.405504]
[1765989859282,0.3535308,2848.4,2847.3,7.7193]
[1765989859484,5.4544,2848.8,2847.5,5.4899]
[1765989859685,0.584,2849.0,2847.6,0.584]
[1765989859884,0.584,2849.0,2847.8,7.7193]
[1765989860886,0.584,2849.0,2847.9,0.584]
[1765989861091,0.584,2849.0,2848.0,2.2294]
[1765989861294,0.02563661,2849.7,2848.3,2.2294]
[1765989861295,0.001,2849.7,2848.3,2.2294]
[1765989861611,0.001,2849.7,2848.8,5.895404]
[1765989861788,0.001,2850.0,2848.8,5.895404]
[1765989861789,0.001,2850.0,2849.4,2.2294]
[1765989861960,0.001,2850.3,2849.7,5.4899]
[1765989862162,0.001,2850.9,2849.8,7.7193]
[1765989862388,0.001,2850.9,2849.8,8.3033]
[1765989862563,0.001,2850.9,2849.9,0.584]
[1765989862763,0.001,2850.9,2849.8,7.7193]
[1765989863089,0.001,2850.9,2849.9,0.584]
[1765989863302,0.001,2850.9,2849.9,4.09282438]
[1765989863807,0.001,2850.2,2849.8,7.7193]
[1765989863960,0.001,2850.2,2849.7,3.50913759]
[1765989864303,0.0002,2850.2,2849.8,0.584]
[1765989864591,0.0002,2850.2,2849.8,8.3033]
[1765989864805,0.0002,2850.2,2849.9,7.01779008]
[1765989865091,0.0002,2850.2,2850.1,11.22794881]
[1765989865263,0.0002,2850.2,2850.1,11.81194881]
[1765989865590,0.0002,2850.2,2849.9,0.46438023]
[1765989865789,0.0002,2850.2,2850.1,11.81194881]
[1765989866465,0.0002,2850.9,2850.2,8.0446]
[1765989866689,0.001,2851.2,2850.1,7.60129762]
[1765989866690,0.0002,2851.2,2850.5,2.1733]
[1765989866911,0.0002,2851.2,2850.9,8.0446]
[1765989867204,0.001,2851.8,2851.2,7.01459034]
[1765989867373,0.001,2851.8,2851.4,5.8713]
[1765989867704,5.4386,2852.7,2851.5,0.584]
[1765989867929,0.46438023,2852.6,2851.5,0.584]
[1765989868128,0.46438023,2852.6,2851.4,8.0446]
[1765989868286,0.46438023,2852.2,2851.3,0.584]
[1765989868493,1.5753,2852.7,2851.3,8.7576]
[1765989869016,5.4594,2852.6,2851.3,8.1736]
[1765989869184,7.0347,2853.3,2851.4,4.09104532]
[1765989869511,7.0357,2853.3,2851.8,5.9422]
[1765989869814,0.02463661,2853.6,2851.9,0.584]
[1765989869984,2.470851,2853.6,2852.1,2.2314]
[1765989870187,6.0434,2853.7,2851.5,0.46438023]
[1765989870188,1.5763,2853.2,2852.2,0.583]
[1765989870420,0.8514251,2853.5,2851.6,8.1736]
[1765989870717,0.46438023,2852.8,2851.4,15.7706962]
[1765989870917,0.46438023,2852.9,2851.5,0.583]
[1765989871104,0.80830802,2852.8,2851.6,3.50680319]
[1765989871304,0.80830802,2852.8,2851.5,0.583]
[1765989871305,0.02463661,2852.6,2851.5,2.2314]
[1765989871813,0.02463661,2852.6,2851.5,3.50688702]
[1765989872114,1.29732486,2852.8,2851.5,11.40020035]
[1765989872500,1.29732486,2852.8,2851.6,7.7574]
[1765989872723,1.29732486,2852.8,2851.7,0.583]
[1765989872724,0.67567249,2852.7,2851.7,0.583]
[1765989873021,0.001,2852.6,2851.7,3.32778023]
[1765989873322,0.02463661,2852.5,2851.8,0.583]
[1765989873631,0.001,2852.6,2851.8,0.583]
[1765989873923,0.001,2852.6,2851.7,2.2804]
[1765989873924,0.001,2852.6,2851.9,0.583]
[1765989874143,0.001,2852.6,2851.7,2.2804]
[1765989874325,0.001,2852.6,2851.2,2.2804]
[1765989874488,0.001,2852.6,2851.7,3.50667381]
[1765989874689,0.001,2852.6,2851.8,0.583]
[1765989874924,0.001,2852.6,2851.9,8.3404]
[1765989875095,6.2950251,2853.5,2852.0,5.477]
[1765989875299,0.02463661,2853.6,2852.6,5.477]
[1765989875514,1.5773,2854.3,2852.9,7.7574]
[1765989875714,1.5773,2854.3,2852.2,0.46438023]
[1765989875715,1.5773,2854.3,2853.0,2.8634]
[1765989875930,1.62109357,2854.3,2853.0,8.3404]
[1765989876135,1.62109357,2854.3,2853.0,7.7574]
[1765989876343,1.5773,2854.3,2853.0,7.7574]
[1765989876528,1.74237907,2854.1,2852.6,7.7574]
[1765989876735,7.0209,2853.9,2852.7,0.583]
[1765989877049,1.19120684,2853.7,2852.8,0.583]
[1765989877247,1.19120684,2853.7,2852.6,2.2804]
[1765989877248,0.02463661,2853.3,2852.2,7.7574]
[1765989877410,0.02463661,2853.5,2852.4,7.7574]
[1765989877739,1.19120684,2853.7,2852.6,3.505544]
[1765989877944,0.66358068,2853.6,2852.7,0.583]
[1765989878238,0.001,2853.8,2852.8,7.8967]
[1765989878551,0.001,2853.8,2852.8,2.3115]
[1765989878832,0.001,2853.8,2852.9,6.1682]
[1765989879208,0.001,2853.8,2853.1,5.5852]
[1765989879608,0.001,2853.8,2853.1,6.20202]
[1765989879908,0.001,2853.8,2853.1,5.5852]
[1765989880106,0.001,2853.8,2853.2,0.583]
[1765989880839,0.001,2853.8,2852.9,9.19550659]
[1765989880840,0.001,2853.8,2853.0,0.583]
[1765989881143,0.001,2853.8,2853.1,7.8945]
[1765989881510,0.001,2853.8,2853.2,0.583]
[1765989881709,0.001,2853.8,2852.6,7.8945]
[1765989881948,0.001,2853.8,2852.9,3.50513054]
[1765989882151,0.001,2853.8,2853.1,3.50495951]